bitfinex/quotes_SOLUSD_20250721
["timestamp","ask_amount","ask_price","bid_price","bid_amount"]
[1753060016903,6.98745406,180.1,180.07,0.03]
[1753060017104,3.49372703,180.07,180.04,0.2]
[1753060017303,3.49372703,180.05,180.04,0.2]
[1753060017803,3.49372703,180.05,180.03,0.03]
[1753060017804,26.0,180.02,180.01,0.03]
[1753060018003,6.98745406,180.02,179.98,0.2]
[1753060018230,5.55555555,180.0,179.98,0.2]
[1753060018426,3.49372703,179.99,179.98,0.2]
[1753060018613,4.16372703,179.99,179.98,0.2]
[1753060019010,3.49372703,179.99,179.98,0.2]
[1753060019218,4.16372703,179.99,179.98,0.2]
[1753060019417,4.16372703,179.99,179.93,27.91389355]
[1753060019616,3.49372703,179.94,179.93,27.91389355]
[1753060019814,3.49372703,179.94,179.93,28.63389355]
[1753060020214,6.22594724,179.99,179.93,28.63389355]
[1753060020528,3.49372703,179.94,179.93,28.63389355]
[1753060021630,3.49372703,179.94,179.93,27.91389355]
[1753060021826,3.49372703,179.94,179.92,8.1696]
[1753060022007,0.68,179.96,179.91,28.56389355]
[1753060022008,3.49372703,179.93,179.91,27.91389355]
[1753060022331,3.49372703,179.92,179.91,27.91389355]
[1753060023520,3.49372703,179.92,179.89,0.65]
[1753060023829,5.55795521,179.93,179.87,7.6896]
[1753060023830,3.49372703,179.9,179.87,7.6896]
[1753060024016,3.49372703,179.88,179.87,7.6896]
[1753060024436,3.49372703,179.88,179.87,8.3396]
[1753060025241,3.49372703,179.9,179.87,8.3396]
[1753060025540,3.49372703,179.92,179.88,0.65]
[1753060025724,3.49372703,179.93,179.88,28.56389355]
[1753060025925,3.49372703,179.91,179.89,0.65]
[1753060026111,3.49372703,179.91,179.9,39.5]
[1753060026311,3.49372703,179.91,179.9,40.15]
[1753060026943,3.49372703,179.92,179.9,40.15]
[1753060027120,6.23654668,179.97,179.9,39.5]
[1753060027121,3.49372703,179.91,179.9,39.5]
[1753060027642,3.49372703,179.91,179.9,40.15]
[1753060029913,3.49372703,179.92,179.9,40.15]
[1753060030115,3.49372703,179.92,179.9,67.41389355]
[1753060030435,6.23683527,179.96,179.91,0.65]
[1753060031117,6.23683527,179.96,179.9,67.41389355]
[1753060031118,0.68,179.95,179.9,67.41389355]
[1753060031322,0.68,179.95,179.9,68.06389355]
[1753060031627,3.49372703,179.91,179.9,68.06389355]
[1753060032438,3.49372703,179.91,179.9,67.41389355]
[1753060032826,7.66745406,179.91,179.85,0.65]
[1753060033026,3.49372703,179.86,179.85,39.52]
[1753060033420,0.68,179.9,179.83,8.3476]
[1753060033421,0.68,179.9,179.83,47.8676]
[1753060033732,3.49372703,179.89,179.84,4.14372703]
[1753060033948,3.49372703,179.91,179.86,26.0]
[1753060034119,3.49372703,179.91,179.87,40.17]
[1753060034324,3.49372703,179.91,179.88,0.65]
[1753060035232,3.49372703,179.92,179.88,0.65]
[1753060035742,3.49372703,179.93,179.89,1.5322]
[1753060035943,3.49372703,179.93,179.91,6.126]
[1753060036238,3.49372703,179.93,179.92,0.65]
[1753060039644,17.52468397,180.02,179.92,28.56389355]
[1753060039870,3.49372703,179.98,179.93,43.66372703]
[1753060040150,3.49372703,179.98,179.94,0.65]
[1753060040527,3.49372703,179.99,179.95,1.5807]
[1753060040723,3.49372703,180.01,179.97,26.0]
[1753060041045,0.06,180.02,179.98,11.8562729]
[1753060041342,3.55372703,180.02,179.99,39.52]
[1753060041528,3.55372703,180.02,180.0,0.65]
[1753060042045,0.06,180.02,180.0,0.65]
[1753060042643,0.06,180.02,180.01,26.55552469]
[1753060042833,0.06,180.02,180.01,30.04925172]
[1753060043146,0.06,180.02,180.01,37.91979865]
[1753060044057,0.06,180.02,180.01,34.42607162]
[1753060045629,0.06,180.02,180.01,54.70448262]
[1753060046246,0.06,180.06,180.01,54.70448262]
[1753060046442,0.06,180.06,180.05,46.278411]
[1753060046766,0.06,180.06,180.05,88.65378397]
[1753060046966,0.06,180.06,180.05,89.30378397]
[1753060047169,0.06,180.06,180.05,94.85779674]
[1753060048660,0.06,180.06,180.05,89.30378397]
[1753060049250,0.06,180.06,180.05,94.85779674]
[1753060050452,0.06,180.06,180.05,72.5191]
[1753060050653,3.55372703,180.06,180.03,26.0]
[1753060050970,3.49372703,180.04,180.03,26.0]
[1753060051149,3.49372703,180.05,180.03,66.16]
[1753060051475,0.06,180.06,180.04,0.68]
[1753060051654,0.06,180.06,180.05,39.48]
[1753060051855,0.06,180.06,180.05,56.82008524]
[1753060052172,0.06,180.06,180.05,60.99381227]
[1753060052393,0.06,180.06,180.05,94.46171859]
[1753060053248,3.55372703,180.14,180.08,26.0]
[1753060053452,3.55372703,180.14,180.09,46.7088]
[1753060053656,3.55372703,180.14,180.1,0.68]
[1753060053861,3.55372703,180.14,180.11,39.48]
[1753060054072,3.55372703,180.14,180.12,0.68]
[1753060054286,3.55372703,180.14,180.13,39.48]
[1753060054583,3.55372703,180.14,180.13,67.39389355]
[1753060055283,5.75127868,180.14,180.13,67.39389355]
[1753060055985,5.75127868,180.14,180.13,27.91389355]
[1753060056167,6.45127868,180.14,180.13,67.39389355]
[1753060056371,5.75127868,180.14,180.13,67.39389355]
[1753060057967,5.75127868,180.14,180.13,39.48]
[1753060060666,0.06,180.14,180.13,68.07389355]
[1753060061573,0.06,180.14,180.13,122.65655691]
[1753060061882,0.06,180.14,180.13,122.1014023]
[1753060062882,0.06,180.14,180.13,116.41012362]
[1753060063283,0.06,180.14,180.13,122.1014023]
[1753060063478,0.06,180.14,180.13,96.1014023]
[1753060063783,0.06,180.18,180.13,96.1014023]
[1753060063784,0.06,180.18,180.17,16.78468397]
[1753060064083,0.06,180.18,180.17,90.34488755]
[1753060064288,0.06,180.18,180.17,85.33360887]
[1753060064591,0.06,180.18,180.17,91.02488755]
[1753060065057,0.06,180.18,180.17,96.57520114]
[1753060065783,0.06,180.18,180.17,98.20890114]
[1753060066296,0.06,180.18,180.17,98.70890114]
[1753060067189,5.75127868,180.18,180.17,67.81389355]
[1753060067488,0.06,180.18,180.17,68.49389355]
[1753060067690,0.06,180.18,180.17,74.04420714]
[1753060068272,0.06,180.18,180.17,68.49389355]
[1753060068479,5.75127868,180.18,180.17,28.35389355]
[1753060068775,5.75127868,180.18,180.17,67.79389355]
[1753060068986,5.75127868,180.18,180.17,28.35389355]
[1753060069170,6.45127868,180.18,180.17,67.79389355]
[1753060069595,5.75127868,180.18,180.17,67.79389355]
[1753060070261,0.06,180.18,180.17,68.47389355]
[1753060070665,0.06,180.18,180.17,73.52420714]
[1753060070883,0.06,180.18,180.17,67.97389355]
[1753060071510,0.06,180.18,180.17,73.52420714]
[1753060072317,0.06,180.18,180.17,67.97389355]
[1753060073379,0.06,180.18,180.17,73.52420714]
[1753060073577,0.06,180.18,180.17,67.97389355]
[1753060075212,0.06,180.18,180.17,73.52420714]
[1753060075413,0.06,180.18,180.17,67.97389355]
[1753060076115,0.06,180.18,180.17,73.52420714]
[1753060076804,0.06,180.18,180.17,90.30889111]
[1753060079117,0.06,180.18,180.17,84.75857752]
[1753060079309,0.06,180.18,180.17,90.30889111]
[1753060079505,0.06,180.18,180.17,93.79820844]
[1753060079706,0.06,180.18,180.17,94.35323979]
[1753060079904,0.06,180.22,180.21,42.78468397]
[1753060080224,0.06,180.22,180.21,154.92020301]
[1753060080392,0.06,180.22,180.21,62.05129355]
[1753060080712,3.54931733,180.22,180.21,93.21389355]
[1753060080910,3.54931733,180.22,180.18,164.78468397]
[1753060080911,3.54931733,180.22,180.18,44.57857752]
[1753060081119,3.48931733,180.19,180.16,27.79389355]
[1753060081294,3.48931733,180.17,180.14,0.03]
[1753060081497,3.48931733,180.16,180.15,39.42]
[1753060081830,3.48931733,180.16,180.14,0.03]
[1753060081986,0.68,180.15,180.14,0.03]
[1753060082190,3.48931733,180.15,180.14,39.45]
[1753060082713,3.48931733,180.16,180.14,39.45]
[1753060083389,3.48931733,180.17,180.14,40.15]
[1753060083585,3.48931733,180.17,180.15,0.7]
[1753060083791,3.48931733,180.17,180.16,39.42]
[1753060083996,3.48931733,180.19,180.16,39.42]
[1753060084300,3.48931733,180.19,180.16,40.12]
[1753060085427,3.48931733,180.2,180.16,40.12]
[1753060086022,3.48931733,180.2,180.17,0.7]
[1753060086203,3.54931733,180.22,180.18,40.67500055]
[1753060086528,3.54931733,180.22,180.19,0.7]
[1753060086706,3.54931733,180.22,180.2,39.42]
[1753060087520,3.48931733,180.21,180.2,39.42]
[1753060087823,4.16931733,180.21,180.2,39.42]
[1753060088121,0.68,180.21,180.2,39.42]
[1753060088308,4.16931733,180.21,180.2,39.42]
[1753060088707,0.68,180.21,180.2,39.42]
[1753060088903,4.16931733,180.21,180.2,39.42]
[1753060091320,4.22931733,180.21,180.2,39.42]
[1753060093629,3.54931733,180.21,180.2,39.42]
[1753060094729,4.22931733,180.21,180.2,39.42]
[1753060095221,3.54931733,180.21,180.2,39.42]
[1753060095825,0.06,180.21,180.2,39.42]
[1753060096013,3.54931733,180.21,180.2,39.42]
[1753060096513,3.54931733,180.21,180.2,67.21389355]
[1753060099124,4.22931733,180.21,180.2,67.21389355]
[1753060102107,3.54931733,180.21,180.2,67.21389355]
[1753060102515,3.54931733,180.21,180.2,39.42]
[1753060102919,3.54931733,180.21,180.2,40.12]
[1753060105408,0.06,180.21,180.2,40.12]
[1753060105614,3.54931733,180.21,180.2,40.12]
[1753060105811,3.54931733,180.21,180.2,39.42]
[1753060106037,3.54931733,180.21,180.2,40.12]
[1753060108140,0.06,180.21,180.2,67.91389355]
[1753060108328,0.06,180.21,180.2,88.18789485]
[1753060108540,0.06,180.22,180.21,23.31688397]
[1753060108744,0.06,180.22,180.21,27.5062013]
[1753060109052,0.06,180.22,180.21,33.05528292]
[1753060109417,0.06,180.22,180.21,24.01688397]
[1753060109715,0.06,180.22,180.21,29.56596559]
[1753060109986,0.06,180.22,180.21,24.01688397]
[1753060110245,0.06,180.22,180.21,7.2322]
[1753060110412,3.54931733,180.22,180.21,45.9522]
[1753060111014,3.54931733,180.22,180.21,39.42]
[1753060111229,3.54931733,180.22,180.21,39.4]
[1753060112636,9.75814769,180.22,180.16,34.30199355]
[1753060112840,9.75814769,180.22,180.15,2.3125]
[1753060112841,3.48931733,180.17,180.15,27.79389355]
[1753060113042,3.48931733,180.16,180.14,27.82389355]
[1753060113239,3.48931733,180.15,180.14,28.51389355]
[1753060113953,3.48931733,180.15,180.14,67.91389355]
[1753060114260,3.48931733,180.16,180.14,67.91389355]
[1753060114440,3.48931733,180.16,180.15,0.69]
[1753060114835,0.72,180.22,180.15,0.69]
[1753060115138,3.48931733,180.18,180.16,39.4]
[1753060115338,3.48931733,180.18,180.16,67.88389355]
[1753060116635,3.48931733,180.18,180.17,0.69]
[1753060120258,3.48931733,180.18,180.17,28.48389355]
[1753060121460,3.48931733,180.21,180.17,34.03417314]
[1753060121630,3.48931733,180.21,180.18,40.09]
[1753060121835,3.48931733,180.21,180.18,40.64500055]
[1753060122034,3.48931733,180.21,180.19,0.69]
[1753060122234,3.48931733,180.21,180.2,40.09]
[1753060122543,3.48931733,180.21,180.2,39.4]
[1753060122743,3.48931733,180.21,180.2,67.19389355]
[1753060123134,3.48931733,180.21,180.2,67.88389355]
[1753060123338,3.48931733,180.21,180.2,67.19389355]
[1753060123741,4.14931733,180.21,180.2,67.19389355]
[1753060123944,4.14931733,180.21,180.15,174.69]
[1753060123945,4.14931733,180.21,180.15,53.79389355]
[1753060124149,0.66,180.2,180.16,39.4]
[1753060124334,3.48931733,180.17,180.16,39.4]
[1753060124537,4.14931733,180.17,180.16,67.19389355]
[1753060125072,3.48931733,180.17,180.16,67.19389355]
[1753060125236,3.48931733,180.17,180.16,27.79389355]
[1753060125443,3.48931733,180.17,180.16,67.19389355]
[1753060126937,0.66,180.19,180.16,67.19389355]
[1753060127239,3.48931733,180.17,180.16,67.19389355]
[1753060127555,3.48931733,180.17,180.16,39.4]
[1753060127556,4.14931733,180.17,180.16,39.4]
[1753060127745,4.14931733,180.17,180.15,39.4]
[1753060127942,3.48931733,180.16,180.15,39.4]
[1753060128147,4.14931733,180.16,180.15,39.4]
[1753060130062,3.48931733,180.16,180.15,39.4]
[1753060130239,4.14931733,180.16,180.15,39.4]
[1753060131743,3.48931733,180.16,180.15,39.4]
[1753060132346,9.70007867,180.16,180.14,67.22389355]
[1753060132542,4.14931733,180.15,180.14,27.82389355]
[1753060133245,3.48931733,180.15,180.14,27.82389355]
[1753060133443,9.70024711,180.15,180.14,27.82389355]
[1753060133772,4.14931733,180.15,180.14,27.82389355]
[1753060134062,4.14931733,180.15,180.14,0.03]
[1753060137159,3.48931733,180.15,180.14,0.03]
[1753060138357,3.48931733,180.15,180.14,40.12]
[1753060139350,3.48931733,180.15,180.14,39.43]
[1753060140773,0.06,180.24,180.14,74.03989355]
[1753060140955,0.76,180.24,180.16,3.48931733]
[1753060141157,0.76,180.24,180.17,60.22903265]
[1753060141158,3.54931733,180.22,180.17,60.22903265]
[1753060141377,0.06,180.22,180.17,60.22903265]
[1753060141581,0.06,180.22,180.19,16.78468397]
[1753060141875,0.06,180.22,180.2,39.95493895]
[1753060142052,0.06,180.22,180.2,40.62493895]
[1753060142253,0.06,180.22,180.21,0.67]
[1753060142974,3.54931733,180.22,180.2,39.4]
[1753060143179,4.18931733,180.21,180.19,27.79389355]
[1753060143382,0.06,180.22,180.15,27.79389355]
[1753060143383,7.67863466,180.2,180.15,27.79389355]
[1753060143688,3.48931733,180.16,180.14,39.41]
[1753060143857,0.7,180.19,180.14,39.41]
[1753060144055,3.48931733,180.15,180.14,40.08]
[1753060144363,3.48931733,180.15,180.14,39.41]
[1753060144948,3.48931733,180.15,180.14,40.08]
[1753060145461,3.48931733,180.17,180.14,40.08]
[1753060145666,3.48931733,180.17,180.15,0.67]
[1753060145965,0.7,180.21,180.16,39.38]
[1753060146161,31.60887951,180.22,180.16,67.17389355]
[1753060146350,0.7,180.2,180.16,67.17389355]
[1753060146751,0.7,180.2,180.16,67.84389355]
[1753060147181,3.48931733,180.17,180.16,67.84389355]
[1753060148984,6.30880721,180.22,180.16,67.84389355]
[1753060149169,3.48931733,180.17,180.16,67.84389355]
[1753060149955,3.48931733,180.17,180.16,67.17389355]
[1753060150268,3.48931733,180.17,180.16,67.84389355]
[1753060153579,3.48931733,180.17,180.16,67.17389355]
[1753060154079,3.48931733,180.17,180.16,27.79389355]
[1753060156659,3.48931733,180.17,180.16,28.46389355]
[1753060158882,3.48931733,180.17,180.16,27.79389355]
[1753060159588,0.06,180.21,180.16,28.46389355]
[1753060159786,3.48931733,180.18,180.17,40.05]
[1753060159961,3.48931733,180.19,180.17,67.84389355]
[1753060160164,3.54931733,180.21,180.18,0.67]
[1753060160381,3.54931733,180.21,180.19,39.38]
[1753060160685,3.54931733,180.21,180.2,0.67]
[1753060160880,3.54931733,180.21,180.19,39.38]
[1753060161093,3.48931733,180.2,180.19,39.38]
[1753060161289,3.48931733,180.2,180.17,27.79389355]
[1753060161469,0.06,180.21,180.18,39.38]
[1753060161991,0.76,180.21,180.18,39.38]
[1753060162691,3.48931733,180.19,180.18,39.38]
[1753060162982,4.18931733,180.19,180.18,39.38]
[1753060164365,3.48931733,180.19,180.17,67.17389355]
[1753060164574,3.48931733,180.18,180.17,39.38]
[1753060164901,3.48931733,180.18,180.17,40.05]
[1753060165388,0.76,180.21,180.17,40.05]
[1753060165588,3.48931733,180.18,180.17,39.38]
[1753060166090,3.48931733,180.18,180.17,40.05]
[1753060166267,3.48931733,180.18,180.17,39.38]
[1753060167894,3.48931733,180.18,180.15,0.67]
[1753060168107,6.24943838,180.2,180.15,28.46389355]
[1753060168108,0.7,180.2,180.15,28.46389355]
[1753060168313,3.48931733,180.17,180.16,40.05]
[1753060168775,0.06,180.21,180.16,40.05]
[1753060169092,0.06,180.21,180.17,1.22503135]
[1753060169296,0.06,180.21,180.18,39.38]
[1753060169482,3.54931733,180.21,180.19,0.67]
[1753060169679,0.06,180.21,180.2,39.38]
[1753060170584,0.06,180.21,180.19,28.46389355]
[1753060170915,0.06,180.21,180.2,39.38]
[1753060171199,3.54931733,180.21,180.2,39.38]
[1753060172789,3.54931733,180.21,180.19,27.79389355]
[1753060173104,0.06,180.21,180.2,39.38]
[1753060174274,4.22931733,180.21,180.2,39.38]
[1753060174491,4.22931733,180.21,180.19,67.17389355]
[1753060174670,4.16931733,180.2,180.19,27.79389355]
[1753060175799,9.71870689,180.2,180.19,27.79389355]
[1753060176677,9.03870689,180.2,180.16,0.03]
[1753060176875,3.48931733,180.17,180.16,0.03]
[1753060177306,4.16931733,180.17,180.16,0.03]
[1753060177976,3.48931733,180.17,180.16,0.03]
[1753060178885,3.48931733,180.17,180.16,0.74]
[1753060179212,3.48931733,180.17,180.16,40.1]
[1753060179576,0.06,180.21,180.16,40.1]
[1753060179778,0.06,180.21,180.16,39.39]
[1753060180011,3.48931733,180.17,180.16,39.39]
[1753060180516,0.06,180.21,180.17,1.5143]
[1753060180682,0.06,180.21,180.19,16.78468397]
[1753060180880,0.06,180.21,180.2,39.93493895]
[1753060181202,0.06,180.21,180.2,85.22351647]
[1753060181413,0.06,180.21,180.2,68.4388325]
[1753060184904,3.54931733,180.21,180.2,67.15389355]
[1753060185208,4.22931733,180.21,180.19,39.36]
[1753060185384,3.48931733,180.2,180.16,0.03]
[1753060185587,3.48931733,180.17,180.16,0.03]
[1753060185888,3.48931733,180.17,180.16,40.1]
[1753060187088,5.60914689,180.21,180.16,40.1]
[1753060187301,3.48931733,180.17,180.16,40.1]
[1753060187504,3.48931733,180.18,180.16,40.1]
[1753060187693,3.48931733,180.17,180.16,39.39]
[1753060188299,3.48931733,180.17,180.16,40.1]
[1753060192118,3.48931733,180.17,180.16,0.03]
[1753060192310,4.16931733,180.17,180.16,0.03]
[1753060193593,3.48931733,180.17,180.16,0.03]
[1753060194800,4.16931733,180.17,180.16,0.03]
[1753060195204,9.71963092,180.17,180.16,0.03]
[1753060200338,9.71963092,180.17,180.14,0.03]
[1753060200542,3.48931733,180.15,180.14,0.03]
[1753060200727,3.48931733,180.15,180.12,0.03]
[1753060200914,3.48931733,180.13,180.12,0.03]
[1753060201116,6.97863466,180.13,180.1,0.03]
[1753060201334,6.97863466,180.11,180.06,67.18389355]
[1753060201637,3.48931733,180.07,180.06,39.39]
[1753060202342,9.75271323,180.07,180.06,0.03]
[1753060202551,9.75271323,180.07,180.0,0.68]
[1753060202716,3.48931733,180.01,180.0,40.04]
[1753060203442,26.0,180.07,180.0,40.04]
[1753060203747,3.48931733,180.04,180.01,0.68]
[1753060203920,3.48931733,180.03,180.0,39.36]
[1753060204248,3.48931733,180.03,180.02,0.68]
[1753060205147,35.7521737,180.09,180.02,0.68]
[1753060205356,3.48931733,180.03,180.02,0.68]
[1753060205527,3.48931733,180.03,180.02,40.06]
[1753060205840,3.48931733,180.03,180.02,39.38]
[1753060206346,3.48931733,180.03,179.99,75.58069355]
[1753060206639,3.48931733,180.0,179.99,76.26069355]
[1753060206840,3.48931733,180.0,179.99,27.99389355]
[1753060207046,6.97863466,180.0,179.99,27.99389355]
[1753060207229,7.68863466,180.0,179.99,27.99389355]
[1753060207765,6.97863466,180.0,179.99,27.99389355]
[1753060208046,6.97863466,180.0,179.99,0.2]
[1753060208047,7.68863466,180.0,179.99,0.2]
[1753060208419,5.55586421,179.99,179.97,0.03]
[1753060208624,3.48931733,179.98,179.97,0.03]
[1753060208818,4.19931733,179.98,179.97,0.03]
[1753060210453,9.75549023,179.98,179.97,0.03]
[1753060211117,11.97161957,179.98,179.97,0.03]
[1753060212861,17.67706624,179.98,179.97,0.03]
[1753060213056,11.41089334,179.96,179.95,0.2]
[1753060213659,12.12089334,179.96,179.95,0.2]
[1753060214760,17.67768373,179.96,179.95,0.2]
[1753060216938,17.67768373,179.96,179.93,0.03]
[1753060217135,5.70544667,179.94,179.93,0.03]
[1753060217362,5.70544667,179.94,179.88,0.68]
[1753060217363,5.70544667,179.94,179.88,27.79389355]
[1753060217669,5.70544667,179.89,179.88,27.79389355]
[1753060217830,5.70544667,179.89,179.88,28.47389355]
[1753060218038,40.11,179.95,179.88,28.47389355]
[1753060218232,5.70544667,179.89,179.88,28.47389355]
[1753060218435,5.70544667,179.89,179.85,36.16509355]
[1753060218436,6.41544667,179.89,179.85,36.16509355]
[1753060218747,5.70544667,179.87,179.85,36.16509355]
[1753060219453,44.9581179,179.92,179.86,0.71]
[1753060219648,5.70544667,179.87,179.86,0.71]
[1753060219845,32.26780893,179.93,179.86,0.71]
[1753060220046,5.70544667,179.87,179.86,28.50389355]
[1753060221362,5.70544667,179.87,179.86,27.82389355]
[1753060221863,5.70544667,179.87,179.86,0.03]
[1753060222167,11.26501747,179.87,179.86,0.03]
[1753060222339,11.97501747,179.87,179.86,0.03]
[1753060222543,11.97501747,179.87,179.84,0.03]
[1753060222544,17.68046414,179.87,179.84,0.03]
[1753060222742,11.41089334,179.85,179.84,0.03]
[1753060222973,11.41089334,179.85,179.8,0.03]
[1753060223156,5.70544667,179.81,179.8,0.03]
[1753060223555,60.55430325,179.81,179.77,0.1]
[1753060223869,60.55430325,179.81,179.68,0.68]
[1753060223870,42.78468397,179.77,179.68,0.68]
[1753060224043,26.0,179.77,179.69,0.68]
[1753060224243,5.70544667,179.7,179.69,0.68]
[1753060224849,26.0,179.76,179.69,0.68]
[1753060225076,5.70544667,179.7,179.69,0.68]
[1753060225372,5.70544667,179.7,179.65,2.2302]
[1753060225580,5.70544667,179.66,179.65,2.2302]
[1753060226647,5.70544667,179.66,179.65,1.5502]
[1753060227755,5.70544667,179.66,179.6,65.42]
[1753060227756,6.41544667,179.66,179.6,2.2325]
[1753060227961,5.70544667,179.61,179.6,2.2325]
[1753060229084,5.70544667,179.61,179.6,1.5525]
[1753060229376,5.70544667,179.61,179.58,46.6357]
[1753060229549,5.70544667,179.6,179.59,0.68]
[1753060229750,26.0,179.7,179.59,0.68]
[1753060229975,61.74522043,180.57,179.61,5.70544667]
[1753060229976,11.97907685,179.74,179.61,5.70544667]
[1753060230176,5.70544667,179.71,179.65,5.70544667]
[1753060230362,2.294,179.8,179.68,5.70544667]
[1753060230363,5.70544667,179.73,179.68,5.70544667]
[1753060230566,5.70544667,179.74,179.69,0.68]
[1753060230871,5.70544667,179.74,179.69,6.38544667]
[1753060231071,5.70544667,179.74,179.68,26.55654496]
[1753060231072,5.70544667,179.74,179.68,32.26199163]
[1753060231265,5.70544667,179.74,179.7,0.7]
[1753060231673,5.70544667,179.74,179.68,37.82741836]
[1753060231858,5.70544667,179.74,179.71,0.7]
[1753060232059,5.70544667,179.74,179.68,32.12197169]
[1753060232255,5.70544667,179.74,179.72,0.7]
[1753060232659,5.70544667,179.73,179.68,0.55654496]
[1753060232966,5.70544667,179.69,179.66,0.7]
[1753060233167,5.70544667,179.67,179.64,6.8171]
[1753060233373,5.70544667,179.66,179.65,0.7]
[1753060233756,5.70544667,179.66,179.64,6.1171]
[1753060233979,5.70544667,179.65,179.64,6.8171]
[1753060234177,5.70544667,179.65,179.64,6.1171]
[1753060234376,5.70544667,179.65,179.63,40.992]
[1753060234668,5.70544667,179.64,179.6,7.0474]
[1753060234969,0.72,179.68,179.61,0.7]
[1753060235179,5.70544667,179.64,179.61,0.7]
[1753060235390,5.70544667,179.64,179.62,0.7]
[1753060235684,5.70544667,179.64,179.63,0.7]
[1753060236059,5.70544667,179.64,179.6,7.0774]
[1753060236262,0.72,179.68,179.6,6.3774]
[1753060236263,5.70544667,179.61,179.6,6.3774]
[1753060236462,5.70544667,179.61,179.6,7.0774]
[1753060237467,26.0,179.68,179.6,7.0774]
[1753060237468,16.78468397,179.7,179.6,7.0774]
[1753060237660,5.70544667,179.65,179.61,0.7]
[1753060238075,5.70544667,179.65,179.62,0.7]
[1753060238368,5.70544667,179.63,179.62,0.7]
[1753060238567,5.70544667,179.63,179.6,6.3774]
[1753060238788,5.70544667,179.61,179.6,6.3774]
[1753060239589,5.70544667,179.61,179.6,0.03]
[1753060240176,6.42544667,179.61,179.6,0.03]
[1753060241698,28.77774936,179.61,179.6,0.03]
[1753060242198,6.42544667,179.61,179.6,0.03]
[1753060242979,11.99306539,179.61,179.6,0.03]
[1753060243192,26.72,179.61,179.6,0.03]
[1753060243392,32.42544667,179.61,179.6,0.03]
[1753060243900,37.99306539,179.61,179.6,0.03]
[1753060245125,54.77774936,179.61,179.6,0.03]
[1753060245282,16.78468397,179.6,179.52,39.56]
[1753060245488,5.70544667,179.53,179.52,39.56]
[1753060245796,0.72,179.59,179.53,0.7]
[1753060245987,5.70544667,179.54,179.53,0.7]
[1753060246496,5.70544667,179.54,179.52,39.56]
[1753060246703,26.0,179.61,179.53,0.7]
[1753060246909,5.70544667,179.56,179.53,0.7]
[1753060247213,5.70544667,179.54,179.53,0.7]
[1753060247389,5.70544667,179.54,179.52,39.56]
[1753060247902,0.72,179.59,179.53,0.7]
[1753060247903,5.70544667,179.55,179.53,0.7]
[1753060248586,26.0,179.62,179.54,0.7]
[1753060248809,5.70544667,179.6,179.54,6.40544667]
[1753060249021,5.70544667,179.6,179.55,0.7]
[1753060249225,5.70544667,179.6,179.55,6.26922073]
[1753060249386,5.70544667,179.59,179.56,0.7]
[1753060249584,5.70544667,179.58,179.56,0.7]
[1753060249814,5.70544667,179.57,179.53,0.7]
[1753060250126,5.70544667,179.57,179.54,0.7]
[1753060250319,5.70544667,179.57,179.52,39.56]
[1753060250518,5.70544667,179.57,179.55,0.7]
[1753060250706,5.70544667,179.57,179.56,0.7]
[1753060250909,5.70544667,179.57,179.54,0.7]
[1753060251220,5.70544667,179.57,179.52,45.26544667]
[1753060251221,5.70544667,179.57,179.55,0.7]
[1753060251524,5.70544667,179.57,179.53,0.7]
[1753060251686,5.70544667,179.56,179.53,0.7]
[1753060252084,5.70544667,179.55,179.51,26.0]
[1753060252286,5.70544667,179.53,179.51,0.7]
[1753060252713,5.70544667,179.55,179.52,0.7]
[1753060252905,5.70544667,179.58,179.53,5.70544667]
[1753060253199,5.70544667,179.6,179.54,6.40544667]
[1753060253422,5.70544667,179.59,179.55,40.36]
[1753060253624,0.72,179.65,179.56,0.7]
[1753060253795,5.70544667,179.6,179.56,0.7]